bitfinex-derivatives/quotes_BTCF0:USTF0_20241022
["timestamp","ask_amount","ask_price","bid_price","bid_amount"]
[1729576092616,0.075965,67630.0,67629.0,0.09992519]
[1729576094009,0.185965,67630.0,67629.0,0.09992519]
[1729576094215,0.185965,67630.0,67629.0,0.18841515]
[1729576094611,0.185965,67630.0,67629.0,0.09992519]
[1729576095327,0.656765,67630.0,67629.0,0.005]
[1729576098022,0.295965,67630.0,67629.0,0.005]
[1729576098216,1.017565,67630.0,67629.0,0.005]
[1729576098525,1.017565,67630.0,67629.0,0.0492084]
[1729576098830,1.017565,67630.0,67629.0,0.005]
[1729576099122,0.295965,67630.0,67629.0,0.005]
[1729576099322,1.017565,67630.0,67629.0,0.005]
[1729576100012,0.907565,67630.0,67629.0,0.005]
[1729576105721,0.907565,67630.0,67629.0,0.0492084]
[1729576106427,0.546765,67630.0,67629.0,0.0492084]
[1729576106831,0.546765,67630.0,67629.0,0.005]
[1729576107225,0.546765,67630.0,67629.0,0.04918371]
[1729576107529,0.546765,67630.0,67629.0,0.04918312]
[1729576107831,0.546765,67630.0,67629.0,0.005]
[1729576110219,0.546765,67630.0,67629.0,0.04918415]
[1729576110426,0.546765,67630.0,67629.0,0.0491835]
[1729576110731,0.546765,67630.0,67629.0,0.005]
[1729576111327,0.546765,67630.0,67629.0,0.0491848]
[1729576115533,0.546765,67630.0,67629.0,0.005]
[1729576116330,1.100365,67630.0,67629.0,0.04918995]
[1729576116530,1.100365,67630.0,67629.0,0.005]
[1729576116731,1.100365,67630.0,67628.0,0.04418995]
[1729576116931,0.073969,67626.0,67624.0,0.05898107]
[1729576117140,0.18397,67625.0,67624.0,0.05898107]
[1729576117335,0.073971,67624.0,67623.0,0.08506564]
[1729576117535,0.434771,67624.0,67623.0,0.05898107]
[1729576117730,0.434771,67624.0,67622.0,0.05898107]
[1729576117731,0.073972,67623.0,67622.0,0.05898107]
[1729576117928,0.293972,67623.0,67622.0,0.05898107]
[1729576118128,0.073973,67622.0,67621.0,0.05898107]
[1729576118435,0.073974,67621.0,67620.0,0.05898107]
[1729576118630,0.183974,67621.0,67620.0,0.05898107]
[1729576119028,0.073975,67620.0,67619.0,0.05898107]
[1729576119228,0.183975,67620.0,67619.0,0.05898107]
[1729576119634,0.183975,67620.0,67619.0,0.05893433]
[1729576120727,0.183975,67620.0,67615.0,0.02915749]
[1729576120728,0.07398,67616.0,67615.0,0.02915749]
[1729576120927,0.54478,67616.0,67615.0,0.02915749]
[1729576122333,0.55278,67616.0,67615.0,0.02915749]
[1729576123639,0.55978,67616.0,67615.0,0.02915749]
[1729576124835,0.54778,67616.0,67615.0,0.02915749]
[1729576125335,0.54578,67616.0,67615.0,0.02915749]
[1729576125635,0.54678,67616.0,67615.0,0.03015749]
[1729576126935,0.54578,67616.0,67615.0,0.03015749]
[1729576127234,0.54678,67616.0,67615.0,0.03015749]
[1729576128132,0.54678,67616.0,67615.0,0.02793899]
[1729576129335,0.54678,67616.0,67615.0,0.08687332]
[1729576130735,0.54678,67616.0,67615.0,0.02793899]
[1729576130736,1.10046,67616.0,67615.0,0.02793899]
[1729576130934,1.10046,67616.0,67615.0,0.001]
[1729576131137,0.65678,67616.0,67615.0,0.001]
[1729576135641,0.29598,67616.0,67615.0,0.001]
[1729576135843,0.65678,67616.0,67615.0,0.001]
[1729576137840,0.5828,67616.0,67607.0,0.05893433]
[1729576138046,0.183989,67608.0,67607.0,0.05893433]
[1729576139250,0.183989,67608.0,67607.0,0.08607075]
[1729576139453,0.184989,67608.0,67607.0,0.08707075]
[1729576140446,0.185989,67608.0,67607.0,0.08707075]
[1729576143558,0.185989,67608.0,67607.0,0.02813642]
[1729576150769,0.185989,67608.0,67607.0,0.1970594]
[1729576152365,0.185989,67608.0,67607.0,0.12331009]
[1729576152763,0.185989,67608.0,67607.0,0.02813642]
[1729576153668,0.185989,67608.0,67607.0,0.10192941]
[1729576158573,0.185989,67608.0,67607.0,0.19718736]
[1729576158773,0.185989,67608.0,67607.0,0.02813642]
[1729576165888,0.185989,67608.0,67607.0,0.12336399]
[1729576169388,0.185989,67608.0,67607.0,0.12337669]
[1729576173393,0.075989,67608.0,67607.0,0.12337669]
[1729576173594,0.185989,67608.0,67607.0,0.12337669]
[1729576173790,0.185989,67608.0,67607.0,0.02813642]
[1729576180894,0.185989,67608.0,67607.0,0.12468319]
[1729576184497,0.185989,67608.0,67607.0,0.12469609]
[1729576186298,0.185989,67608.0,67607.0,0.11669287]
[1729576189009,0.185989,67608.0,67607.0,0.02013642]
[1729576196011,0.185989,67608.0,67607.0,0.11668736]
[1729576199513,0.185989,67608.0,67607.0,0.11657575]
[1729576201211,0.185989,67608.0,67607.0,0.19056575]
[1729576201517,0.075989,67608.0,67607.0,0.19056575]
[1729576201817,0.185989,67608.0,67607.0,0.18256575]
[1729576206721,0.112,67608.0,67607.0,0.18256575]
[1729576206909,0.112,67608.0,67607.0,0.29256575]
[1729576207705,0.185989,67608.0,67607.0,0.18256575]
[1729576210419,0.185989,67608.0,67607.0,0.10857575]
[1729576210917,0.185989,67608.0,67607.0,0.01213642]
[1729576211917,0.185989,67608.0,67598.0,0.3608]
[1729576211918,0.073998,67599.0,67598.0,0.0591287]
[1729576212219,0.5808,67599.0,67595.0,0.0591287]
[1729576212416,0.184003,67596.0,67593.0,0.1037789]
[1729576212612,0.184003,67596.0,67595.0,0.074003]
[1729576213416,0.074004,67594.0,67593.0,0.0022189]
[1729576213717,0.074004,67594.0,67593.0,0.0613476]
[1729576214119,0.074004,67594.0,67593.0,0.1353526]
[1729576214319,0.074004,67594.0,67593.0,0.0762239]
[1729576214714,0.074004,67594.0,67593.0,0.10281566]
[1729576215416,0.075004,67594.0,67593.0,0.10281566]
[1729576216420,0.076004,67594.0,67593.0,0.10281566]
[1729576219128,0.076004,67594.0,67593.0,0.19947224]
[1729576222029,0.076004,67594.0,67593.0,0.21406347]
[1729576222333,0.076004,67594.0,67593.0,0.12546724]
[1729576222535,0.076004,67594.0,67593.0,0.12544729]
[1729576223431,0.074006,67592.0,67585.0,0.08876122]
[1729576223627,0.654813,67586.0,67585.0,0.00016499]
[1729576223931,0.654813,67586.0,67585.0,0.09712721]
[1729576224127,0.544813,67586.0,67585.0,0.09712721]
[1729576224431,0.654813,67586.0,67585.0,0.12440278]
[1729576224630,0.544813,67586.0,67585.0,0.12440278]
[1729576225419,0.655813,67586.0,67585.0,0.13640278]
[1729576226032,0.546813,67586.0,67585.0,0.14740278]
[1729576227637,0.546813,67586.0,67585.0,0.05044056]
[1729576228436,0.186013,67586.0,67585.0,0.05044056]
[1729576232143,0.076013,67586.0,67585.0,0.05044056]
[1729576232347,0.186013,67586.0,67585.0,0.11845456]
[1729576232942,0.076013,67586.0,67585.0,0.11845456]
[1729576233154,0.186013,67586.0,67585.0,0.11845456]
[1729576233446,0.18613991,67586.0,67585.0,0.11845456]
[1729576235547,0.00212691,67586.0,67585.0,0.22845456]
[1729576235846,0.00212691,67586.0,67585.0,0.64824067]
[1729576236047,0.00212691,67586.0,67585.0,0.58925456]
[1729576236352,0.00212691,67586.0,67585.0,0.22845456]
[1729576241050,0.00212691,67586.0,67585.0,0.3249331]
[1729576241248,0.074005,67594.0,67592.0,0.074006]
[1729576241444,0.184005,67594.0,67593.0,0.11]
[1729576241653,0.074005,67593.0,67592.0,0.074006]
[1729576241853,0.074005,67593.0,67592.0,0.17053456]
[1729576242444,0.074005,67593.0,67592.0,0.17653456]
[1729576242643,0.074005,67593.0,67592.0,0.18153456]
[1729576243854,0.075005,67593.0,67592.0,0.18253456]
[1729576244855,0.075005,67593.0,67592.0,0.17653456]
[1729576245053,0.076005,67593.0,67592.0,0.18353456]
[1729576246457,0.076005,67593.0,67592.0,0.1835773]
[1729576246975,0.076005,67593.0,67592.0,0.18357681]
[1729576247851,0.076005,67593.0,67592.0,0.17557681]
[1729576248957,0.076005,67593.0,67592.0,0.079006]
[1729576249163,0.076005,67593.0,67592.0,0.10564651]
[1729576250659,0.076005,67593.0,67592.0,0.21564651]
[1729576250856,0.002,67593.0,67592.0,0.21564651]
[1729576251757,0.002,67593.0,67592.0,0.27476833]
[1729576251965,0.002,67593.0,67592.0,0.21564651]
[1729576256064,0.002,67593.0,67592.0,0.31213572]
[1729576258272,0.002,67593.0,67592.0,0.62347847]
[1729576259366,0.002,67593.0,67592.0,0.6498452]
[1729576259762,0.002,67593.0,67592.0,0.89568224]
[1729576260867,0.002,67593.0,67592.0,0.89560497]
[1729576263274,0.002,67593.0,67592.0,0.88760497]
[1729576263663,0.002,67593.0,67592.0,0.97628495]
[1729576263865,0.002,67593.0,67592.0,0.86628495]
[1729576264172,0.002,67593.0,67592.0,0.79119303]
[1729576264570,0.002,67593.0,67592.0,0.8503087]
[1729576265264,0.002,67593.0,67592.0,0.79119303]
[1729576265464,0.002,67593.0,67592.0,0.8503097]
[1729576266465,0.002,67593.0,67592.0,0.79119303]
[1729576267665,0.3608,67619.0,67592.0,1.40029984]
[1729576267869,0.00076,67613.0,67610.0,0.11]
[1729576268066,0.07398,67616.0,67615.0,0.07398]
[1729576269568,0.08798,67616.0,67615.0,0.18498]
[1729576269765,0.10198,67616.0,67615.0,0.18598]
[1729576270673,0.21198,67616.0,67615.0,0.002]
[1729576272886,0.21198,67616.0,67615.0,0.02908397]
[1729576274675,0.21198,67616.0,67615.0,0.002]
[1729576278580,0.073981,67615.0,67614.0,0.02127374]
[1729576278777,0.073982,67614.0,67613.0,0.073983]
[1729576278978,0.183982,67614.0,67613.0,0.073983]
[1729576281281,0.197982,67614.0,67613.0,0.074983]
[1729576281486,0.197982,67614.0,67613.0,0.10118426]
[1729576282079,0.211982,67614.0,67613.0,0.10218426]
[1729576283292,0.321982,67614.0,67613.0,0.02820126]
[1729576283475,0.211982,67614.0,67613.0,0.02820126]
[1729576285383,0.321982,67614.0,67613.0,0.002]
[1729576285580,0.074002,67597.0,67594.0,0.3608]
[1729576285770,0.073984,67613.0,67594.0,0.3608]
[1729576285771,0.184003,67595.0,67594.0,0.3608]
[1729576286881,0.184003,67595.0,67594.0,0.39460098]
[1729576288482,0.184003,67595.0,67594.0,0.39660098]
[1729576289477,0.184003,67595.0,67594.0,0.03580098]
[1729576289688,0.184003,67595.0,67594.0,0.10980498]
[1729576290186,0.074003,67595.0,67594.0,0.21980498]
[1729576290784,0.184003,67595.0,67594.0,0.21980498]
[1729576292795,0.184003,67595.0,67594.0,0.10980498]
[1729576293391,0.184003,67595.0,67594.0,0.16886776]
[1729576293691,0.184003,67595.0,67594.0,0.16886771]
[1729576293883,0.184003,67595.0,67594.0,0.16086771]
[1729576294189,0.184003,67595.0,67594.0,0.10180498]
[1729576295192,0.184003,67595.0,67594.0,0.21180498]
[1729576295489,0.184003,67595.0,67594.0,0.009]
[1729576295992,0.184003,67595.0,67594.0,0.05329468]
[1729576297494,0.184003,67595.0,67594.0,0.009]
[1729576312594,0.11,67595.0,67586.0,0.36164]
[1729576312793,0.11,67587.0,67586.0,0.3608]
[1729576313002,0.11,67587.0,67586.0,0.434813]
[1729576313596,0.11,67587.0,67586.0,0.53139709]
[1729576313895,0.11,67587.0,67586.0,0.53639709]
[1729576314391,0.111,67587.0,67586.0,0.56960548]
[1729576314603,0.111,67587.0,67586.0,0.56460548]
[1729576314902,0.112,67587.0,67586.0,0.57560548]
[1729576316904,0.112,67587.0,67586.0,0.11822139]
[1729576317095,0.112,67587.0,67586.0,0.47902139]
[1729576321804,0.112,67587.0,67586.0,0.11822139]
[1729576322012,0.112,67587.0,67586.0,0.47902139]
[1729576324802,0.002,67587.0,67586.0,0.47902139]
[1729576325004,0.07621636,67601.0,67599.0,0.073998]
[1729576325305,0.07621636,67601.0,67586.0,1.2557408]
[1729576325306,0.18621536,67601.0,67600.0,0.09671898]
[1729576326613,0.07621536,67601.0,67600.0,0.24473634]
[1729576326807,0.18821536,67601.0,67600.0,0.2595576]
[1729576327011,0.18821536,67601.0,67600.0,0.17071598]
[1729576327209,0.18621536,67601.0,67600.0,0.17071598]
[1729576327410,0.18821536,67601.0,67600.0,0.17071598]
[1729576328011,0.19121536,67601.0,67600.0,0.17043179]
[1729576328612,0.08121536,67601.0,67600.0,0.28043179]
[1729576329611,0.00721936,67601.0,67600.0,0.28043179]
[1729576330007,0.00721936,67601.0,67600.0,0.36927341]
[1729576330209,0.00721936,67601.0,67600.0,0.28043179]
[1729576331412,0.00721936,67601.0,67600.0,0.64123179]
[1729576331723,0.005,67601.0,67600.0,0.64123179]
[1729576331922,0.005,67601.0,67600.0,0.544797]
[1729576332429,0.005,67601.0,67600.0,0.57104787]
[1729576333529,0.005,67601.0,67600.0,0.61537294]
[1729576334418,0.005,67601.0,67600.0,0.57104787]
[1729576335428,0.005,67601.0,67600.0,0.61537294]
[1729576335628,0.005,67601.0,67600.0,0.57104787]
[1729576335822,0.005,67601.0,67600.0,0.61536126]
[1729576337431,0.005,67601.0,67600.0,0.57104787]
[1729576339431,0.005,67601.0,67600.0,0.61536126]
[1729576339941,0.3608,67612.0,67607.0,0.06599]
[1729576339942,0.073989,67608.0,67607.0,0.06599]
[1729576341226,0.083989,67608.0,67607.0,0.06699]
[1729576342136,0.201989,67608.0,67607.0,0.12703743]
[1729576342330,0.201989,67608.0,67607.0,0.06799]
[1729576342838,0.201989,67608.0,67607.0,0.002]
[1729576343230,0.201989,67608.0,67607.0,0.02917109]
[1729576347338,0.562789,67608.0,67607.0,0.02917109]
[1729576349945,0.201989,67608.0,67607.0,0.02917109]
[1729576350134,0.562789,67608.0,67607.0,0.02917109]
[1729576350834,0.201989,67608.0,67607.0,0.02917109]
[1729576351035,0.562789,67608.0,67607.0,0.02917109]
[1729576352444,0.201989,67608.0,67607.0,0.02917109]
[1729576352639,0.562789,67608.0,67607.0,0.02917109]
[1729576354132,0.672789,67608.0,67607.0,0.02917109]
[1729576354335,0.562789,67608.0,67607.0,0.02917109]
[1729576355340,0.4888,67608.0,67602.0,0.073995]
[1729576355541,0.183994,67603.0,67602.0,0.073995]
[1729576355743,0.183994,67603.0,67602.0,0.10124236]
[1729576355937,0.183994,67603.0,67602.0,0.02724736]
[1729576356247,0.11,67603.0,67597.0,0.11836301]
[1729576356452,0.183998,67599.0,67598.0,0.04436301]
[1729576358043,0.183998,67599.0,67597.0,0.074]
[1729576358044,0.074,67598.0,67597.0,0.11836301]
[1729576359939,0.074,67598.0,67597.0,0.11936301]
[1729576362043,0.074,67598.0,67597.0,0.17147218]
[1729576366055,0.184,67598.0,67597.0,0.17147218]
[1729576368657,0.074,67598.0,67597.0,0.17147218]
[1729576370259,0.074,67598.0,67597.0,0.075]
[1729576370653,0.11,67600.0,67598.0,0.073999]
[1729576370963,0.11,67600.0,67599.0,0.05917996]
[1729576371860,0.003,67600.0,67599.0,0.05917996]
[1729576372163,0.003,67600.0,67599.0,0.24317796]
[1729576372564,0.003,67600.0,67599.0,0.183998]
[1729576373067,0.113,67600.0,67599.0,0.073998]
[1729576373958,0.003,67600.0,67599.0,0.183998]
[1729576378656,0.003,67600.0,67599.0,0.28034052]
[1729576381764,0.003,67600.0,67599.0,0.183998]
[1729576382666,0.113,67600.0,67599.0,0.073998]
[1729576383572,0.113,67600.0,67599.0,0.17033329]
[1729576384671,0.113,67600.0,67599.0,0.073998]
[1729576385873,0.113,67600.0,67599.0,0.065998]
[1729576388478,0.186997,67600.0,67599.0,0.11038585]
[1729576388881,0.186997,67600.0,67599.0,0.065998]
[1729576391179,0.186997,67600.0,67599.0,0.04439095]
[1729576391387,0.074,67598.0,67596.0,0.04439095]
[1729576391587,0.074002,67596.0,67595.0,0.07050001]
[1729576391785,0.074002,67596.0,67595.0,0.04439095]
[1729576392176,0.074002,67596.0,67595.0,0.11839395]
[1729576392775,0.002,67600.0,67595.0,0.09663407]
[1729576393088,0.112,67600.0,67598.0,0.073999]
[1729576393289,0.112,67600.0,67599.0,0.09663407]
[1729576393486,0.112,67600.0,67599.0,0.17063207]
[1729576394092,0.11,67600.0,67599.0,0.17063207]
[1729576394679,0.11,67600.0,67599.0,0.09663407]
[1729576394885,0.185997,67600.0,67599.0,0.09663407]
[1729576395687,0.186997,67600.0,67599.0,0.09663407]
[1729576399888,0.186997,67600.0,67597.0,0.074]
[1729576401198,0.184997,67600.0,67597.0,0.074]
[1729576401397,0.186997,67600.0,67597.0,0.074]
[1729576404394,0.074001,67597.0,67596.0,0.04439149]
[1729576405687,0.074001,67597.0,67596.0,0.04639149]
[1729576406592,0.074001,67597.0,67596.0,0.002]
[1729576406994,0.074001,67597.0,67596.0,0.003]
[1729576407790,0.074001,67597.0,67596.0,0.21452231]
[1729576409086,0.184001,67597.0,67596.0,0.09949909]
[1729576409487,0.184001,67597.0,67596.0,0.003]
[1729576409795,0.074001,67597.0,67596.0,0.003]
[1729576416697,0.074005,67593.0,67592.0,0.09809499]
[1729576416894,0.184005,67593.0,67592.0,0.09809499]
[1729576418004,0.185005,67593.0,67592.0,0.19978484]
[1729576418405,0.185005,67593.0,67592.0,0.1030424]
[1729576418601,0.185005,67593.0,67592.0,0.19984389]
[1729576418906,0.185005,67593.0,67592.0,0.1030424]
[1729576419108,0.185005,67593.0,67592.0,0.02911879]
[1729576419404,0.186005,67593.0,67592.0,0.1080424]
[1729576419807,0.186005,67593.0,67592.0,0.03411879]
[1729576428119,0.076005,67593.0,67592.0,0.03411879]
[1729576428305,0.186005,67593.0,67592.0,0.03411879]
[1729576428717,0.186005,67593.0,67592.0,0.10812479]
[1729576429812,0.186005,67593.0,67592.0,0.27884231]
[1729576430017,0.076005,67593.0,67592.0,0.27884231]
[1729576430211,0.076005,67593.0,67592.0,0.2049187]
[1729576430212,0.002,67593.0,67592.0,0.2049187]
[1729576430423,0.002,67593.0,67592.0,0.31998705]
[1729576430608,0.002,67593.0,67592.0,0.76382705]
[1729576430811,0.073994,67603.0,67599.0,0.11]
[1729576431008,0.11,67604.0,67601.0,0.073996]
[1729576431312,0.073995,67603.0,67601.0,0.073996]
[1729576431511,0.073989,67608.0,67601.0,0.24449166]
[1729576431715,0.073989,67608.0,67601.0,0.17056814]
[1729576432022,0.3608,67610.0,67601.0,0.16256814]
[1729576432223,0.183985,67612.0,67608.0,0.073988]
[1729576432524,0.11,67612.0,67609.0,0.073987]
[1729576432715,0.073985,67611.0,67609.0,0.073987]
[1729576433026,0.073988,67609.0,67607.0,0.07391792]
[1729576433214,0.11,67608.0,67607.0,0.14790792]
[1729576433524,0.11,67608.0,67607.0,0.07399]
[1729576434221,0.11,67608.0,67607.0,0.07499]
[1729576434419,0.12,67608.0,67607.0,0.07499]
[1729576435526,0.129,67608.0,67607.0,0.07599]
[1729576436521,0.202989,67608.0,67607.0,0.10243152]
[1729576438617,0.202989,67608.0,67607.0,0.02844152]
[1729576445830,0.202989,67608.0,67607.0,0.10243152]
[1729576446027,0.092989,67608.0,67607.0,0.10243152]
[1729576446226,0.019,67608.0,67607.0,0.10243152]
[1729576447238,0.019,67608.0,67607.0,0.09443152]
[1729576447732,0.0022191,67614.0,67613.0,0.073983]
[1729576448036,0.0022191,67614.0,67613.0,0.183983]
[1729576448931,0.0162191,67614.0,67613.0,0.184983]
[1729576449941,0.0252191,67614.0,67613.0,0.185983]
[1729576450938,0.0252191,67614.0,67613.0,0.546783]
[1729576452937,0.0252191,67614.0,67613.0,0.436783]
[1729576452938,0.2092011,67614.0,67613.0,0.436783]
[1729576453541,0.2092011,67614.0,67613.0,0.002]
[1729576453542,0.0992011,67614.0,67613.0,0.002]
[1729576453737,0.2092011,67614.0,67613.0,0.002]
[1729576462555,0.2092011,67614.0,67613.0,0.07577181]
[1729576462845,0.0992011,67614.0,67613.0,0.20601082]
[1729576463743,0.0252191,67614.0,67613.0,0.27999382]
[1729576468048,0.0252191,67614.0,67613.0,0.27979692]
[1729576472752,0.0252191,67614.0,67613.0,0.183983]
[1729576472951,0.0252191,67614.0,67613.0,0.27991636]
[1729576473543,0.0252191,67614.0,67613.0,0.36862458]
[1729576474154,0.0252191,67614.0,67613.0,0.27991636]
[1729576474654,0.0252191,67614.0,67613.0,0.36863939]
[1729576474954,0.0252191,67614.0,67613.0,0.22834461]
[1729576475353,0.3608,67630.0,67613.0,0.40644601]
[1729576475658,0.073972,67624.0,67623.0,0.073972]
[1729576476753,0.073972,67624.0,67623.0,0.183972]
[1729576477256,0.083972,67624.0,67623.0,0.184972]
[1729576477647,0.193972,67624.0,67623.0,0.074972]
[1729576478150,0.193972,67624.0,67623.0,0.066972]
[1729576478450,0.193972,67624.0,67623.0,0.067972]
[1729576479254,0.183972,67624.0,67623.0,0.065972]
[1729576481757,0.183972,67624.0,67623.0,0.0929924]
[1729576481960,0.073972,67624.0,67623.0,0.0929924]
[1729576485957,0.183972,67624.0,67623.0,0.0929924]
[1729576489567,0.544772,67624.0,67623.0,0.0929924]
[1729576493367,0.544772,67624.0,67623.0,0.0849924]
[1729576497967,0.544772,67624.0,67623.0,0.18064896]
[1729576501073,0.544772,67624.0,67623.0,0.0849924]
[1729576501370,0.544772,67624.0,67623.0,0.18062087]
[1729576503874,0.434772,67624.0,67623.0,0.18062087]
[1729576504070,0.073972,67624.0,67623.0,0.18062087]
[1729576504278,0.3608,67630.0,67623.0,0.12264887]
[1729576504474,0.434764,67630.0,67629.0,0.183966]
[1729576504677,0.434764,67630.0,67629.0,0.27959447]
[1729576505375,0.3608,67630.0,67629.0,0.27959447]
[1729576505573,0.073956,67638.0,67629.0,0.63985112]
[1729576505776,0.073956,67638.0,67637.0,0.183957]
[1729576505777,0.073957,67638.0,67637.0,0.183957]
[1729576506373,0.073957,67638.0,67637.0,0.27888473]
[1729576506566,0.073957,67638.0,67637.0,0.25789122]
[1729576506970,0.074957,67638.0,67637.0,0.25789122]
[1729576507167,0.074957,67638.0,67637.0,0.183957]
[1729576508972,0.074957,67638.0,67637.0,0.175957]
[1729576509168,0.073957,67638.0,67637.0,0.176957]
[1729576509976,0.073957,67638.0,67637.0,0.177957]
[1729576510389,0.073957,67638.0,67637.0,0.1302966]
[1729576510684,0.073957,67638.0,67637.0,0.0282966]
[1729576511482,0.073957,67638.0,67637.0,0.08737421]
[1729576513085,0.073957,67638.0,67637.0,0.0282966]
[1729576516285,0.073957,67638.0,67637.0,0.002]
[1729576516486,0.55356,67638.0,67619.0,0.14478265]
[1729576516789,0.3608,67640.0,67620.0,0.073975]
[1729576516790,0.073975,67621.0,67620.0,0.073975]
[1729576517485,0.183975,67621.0,67620.0,0.073975]
[1729576519193,0.3608,67628.0,67619.0,0.02745839]
[1729576519194,0.07397,67625.0,67624.0,0.07397]
[1729576519484,0.18397,67625.0,67624.0,0.07397]
[1729576520190,0.18397,67625.0,67619.0,0.02645839]
[1729576520191,0.11,67625.0,67621.0,0.0590671]
[1729576520387,0.11,67625.0,67615.0,0.07398]
[1729576520388,0.544773,67622.0,67620.0,0.0590671]
[1729576520688,0.11,67621.0,67619.0,0.0590671]
[1729576520890,0.11,67620.0,67619.0,0.0590671]
[1729576521084,0.183975,67620.0,67619.0,0.0590671]
[1729576521285,0.073976,67619.0,67618.0,0.0590671]
[1729576521786,0.073979,67617.0,67616.0,0.0590671]
[1729576521983,0.11,67617.0,67615.0,0.0590671]
[1729576522178,0.4708,67616.0,67614.0,0.0590671]
[1729576522382,0.183981,67615.0,67614.0,0.0590671]
[1729576523789,0.183981,67615.0,67614.0,0.008]
[1729576525897,0.183981,67615.0,67614.0,0.016]
[1729576527991,0.544781,67615.0,67614.0,0.016]
[1729576531799,0.183981,67615.0,67614.0,0.016]
[1729576532198,0.544781,67615.0,67614.0,0.016]
[1729576540695,0.544781,67615.0,67614.0,0.089982]
[1729576543598,0.544781,67615.0,67614.0,0.016]
[1729576547411,0.434781,67615.0,67614.0,0.016]
[1729576547611,0.544781,67615.0,67614.0,0.016]
[1729576549502,0.544781,67615.0,67614.0,0.089982]
[1729576549811,0.3608,67615.0,67614.0,0.199982]
[1729576550007,0.073977,67619.0,67618.0,0.073977]
[1729576550207,0.073977,67619.0,67618.0,0.16986544]
[1729576552016,0.073977,67619.0,67618.0,0.17386544]
[1729576552213,0.073977,67619.0,67618.0,0.17786544]
[1729576554417,0.073977,67619.0,67618.0,0.17797522]
[1729576555008,0.073977,67619.0,67618.0,0.16997522]
[1729576555216,0.073977,67619.0,67618.0,0.10399349]
[1729576557214,0.073977,67619.0,67618.0,0.008]
[1729576559309,0.073977,67619.0,67618.0,0.03428791]
[1729576559816,0.073977,67619.0,67618.0,0.09346238]
[1729576560008,0.073977,67619.0,67618.0,0.03428791]
[1729576570221,0.073977,67619.0,67618.0,0.10826591]
[1729576570431,0.073977,67619.0,67618.0,0.02628791]
[1729576570630,0.11,67621.0,67616.0,0.11]
[1729576570822,0.073979,67617.0,67616.0,0.183977]
[1729576571631,0.073979,67617.0,67616.0,0.21004078]
[1729576571827,0.183979,67617.0,67616.0,0.14442251]
[1729576572033,0.183979,67617.0,67616.0,0.14642251]
[1729576572328,0.183979,67617.0,67616.0,0.18201281]
[1729576573331,0.183979,67617.0,67616.0,0.18501281]
[1729576577439,0.183979,67617.0,67616.0,0.2810083]
[1729576577633,0.183979,67617.0,67616.0,0.28101892]
[1729576579230,0.183979,67617.0,67616.0,0.20704689]
[1729576580428,0.183979,67617.0,67616.0,0.28103065]
[1729576580925,0.3608,67623.0,67616.0,0.24306989]
[1729576581125,0.434773,67623.0,67622.0,0.183973]
[1729576581437,0.434773,67623.0,67622.0,0.073973]
[1729576582337,0.435773,67623.0,67622.0,0.073973]
[1729576583936,0.073975,67620.0,67619.0,0.0739801]
[1729576584132,0.073975,67620.0,67618.0,0.0739801]
[1729576584328,0.11,67619.0,67618.0,0.073977]
[1729576585533,0.11,67619.0,67618.0,0.076977]
[1729576585731,0.11,67619.0,67618.0,0.068977]
[1729576586236,0.11,67619.0,67618.0,0.072977]
[1729576587538,0.073975,67620.0,67619.0,0.073976]
[1729576587728,0.183975,67620.0,67619.0,0.073976]
[1729576588636,0.183975,67620.0,67619.0,0.075976]
[1729576588833,0.183975,67620.0,67619.0,0.078976]
[1729576592042,0.073975,67620.0,67619.0,0.078976]
[1729576593247,0.073975,67620.0,67619.0,0.12333862]
[1729576594532,0.3608,67623.0,67622.0,0.073973]
[1729576594731,0.434772,67623.0,67622.0,0.183973]
[1729576594942,0.3608,67623.0,67622.0,0.183973]
[1729576595140,0.3608,67623.0,67622.0,0.40635984]
[1729576595445,0.3608,67623.0,67622.0,0.59075061]
[1729576595740,0.3618,67623.0,67622.0,0.59075061]
[1729576596138,0.3618,67623.0,67622.0,0.5019858]
[1729576597142,0.3618,67623.0,67622.0,0.50185803]
[1729576597443,0.3618,67623.0,67622.0,0.50181671]
[1729576597835,0.3618,67623.0,67622.0,0.59058152]
[1729576597836,0.001,67623.0,67622.0,0.59058152]
[1729576598037,0.3608,67636.0,67635.0,0.073959]
[1729576598342,0.3608,67648.0,67635.0,0.20502706]
[1729576598550,0.073953,67641.0,67640.0,0.183953]
[1729576598846,0.183953,67641.0,67640.0,0.183953]
[1729576599335,0.073953,67641.0,67640.0,0.183953]
[1729576600949,0.077953,67641.0,67640.0,0.176953]
[1729576601341,0.082953,67641.0,67640.0,0.177953]
[1729576601748,0.08068832,67641.0,67640.0,0.067953]
[1729576604350,0.08068832,67641.0,67640.0,0.09491543]
[1729576609151,0.44148832,67641.0,67640.0,0.09491543]
[1729576616351,0.44148832,67641.0,67640.0,0.08691543]
[1729576618454,0.55148832,67641.0,67640.0,0.08691543]
[1729576625564,0.55148832,67641.0,67640.0,0.18164514]
[1729576627266,0.55148832,67641.0,67640.0,0.27030577]
[1729576630264,0.55148832,67641.0,67640.0,0.27043708]
[1729576631767,0.55148832,67641.0,67640.0,0.26243708]
[1729576632263,0.55148832,67641.0,67640.0,0.21248408]
[1729576632467,0.55148832,67641.0,67640.0,0.07335691]
[1729576633269,0.55148832,67641.0,67640.0,0.02896243]
[1729576635076,0.55148832,67641.0,67614.0,0.402181]
[1729576635077,0.073956,67638.0,67637.0,0.05919264]
[1729576635273,0.073961,67633.0,67632.0,0.04439887]
[1729576635473,0.073961,67633.0,67626.0,0.04439887]
[1729576635474,0.073967,67628.0,67626.0,0.04439887]
[1729576635662,0.073971,67624.0,67623.0,0.04439887]
[1729576635975,0.11,67624.0,67621.0,0.04523887]
[1729576636170,0.183973,67622.0,67621.0,0.04439887]
[1729576636372,0.183973,67622.0,67619.0,0.11837487]